bitfinex/quotes_ETHUSD_20251117
["timestamp","ask_amount","ask_price","bid_price","bid_amount"]
[1763337602474,0.487322,3105.7,3105.6,0.001]
[1763337602671,0.42328686,3105.7,3105.6,0.001]
[1763337603038,0.12928686,3105.7,3105.6,0.001]
[1763337603370,0.42328686,3105.7,3105.6,0.001]
[1763337604143,0.91798686,3105.7,3105.6,0.001]
[1763337606397,1.32349086,3105.7,3105.6,0.001]
[1763337606888,2.11490582,3105.7,3105.6,0.001]
[1763337607093,2.3446664,3105.7,3105.6,0.001]
[1763337607656,1.90638658,3105.7,3105.6,0.001]
[1763337608295,1.00618258,3105.7,3105.6,0.001]
[1763337608499,0.42328686,3105.7,3105.6,0.001]
[1763337608663,0.12928686,3105.7,3105.6,0.001]
[1763337608993,0.12928686,3105.7,3105.6,0.482]
[1763337610170,0.002,3106.3,3105.6,0.9784]
[1763337610370,0.4749,3105.7,3105.6,0.001]
[1763337610571,0.6576,3105.7,3105.6,0.001]
[1763337610897,1.1521,3105.7,3105.6,0.001]
[1763337612383,1.1521,3105.7,3105.5,0.001]
[1763337612723,0.4977,3104.8,3104.1,0.1962]
[1763337612869,0.4977,3104.8,3103.8,2.8477591]
[1763337612870,0.4977,3104.5,3103.8,0.4964]
[1763337613068,0.9892,3104.5,3103.8,0.4964]
[1763337613309,1.4869,3104.5,3103.6,2.8477591]
[1763337613605,0.1827,3105.2,3104.4,0.9784]
[1763337613791,0.1827,3105.2,3104.4,0.001]
[1763337613994,1.45015528,3104.5,3104.4,0.001]
[1763337615724,0.96985528,3104.5,3104.4,0.001]
[1763337615998,1.94465528,3104.5,3104.4,0.001]
[1763337616314,2.13912081,3104.5,3104.4,0.001]
[1763337618823,2.54462481,3104.5,3104.4,0.001]
[1763337619376,2.13912081,3104.5,3104.4,0.001]
[1763337619584,0.96985528,3104.5,3104.4,0.001]
[1763337621397,2.34125928,3104.5,3104.4,0.001]
[1763337621920,1.44625528,3104.5,3104.4,0.001]
[1763337622222,1.42805528,3104.5,3104.4,0.001]
[1763337622425,1.91755528,3104.5,3104.4,0.001]
[1763337622623,2.10931081,3104.5,3104.4,0.001]
[1763337626641,1.61981081,3104.5,3104.4,0.001]
[1763337626842,1.91755528,3104.5,3104.4,0.001]
[1763337627799,0.405504,3104.4,3102.7,2.8477591]
[1763337628050,0.405504,3104.2,3102.4,0.4842]
[1763337628255,0.405504,3104.2,3102.6,0.4832]
[1763337628397,0.405504,3104.0,3102.6,0.4832]
[1763337628597,0.35313514,3104.3,3102.6,0.4832]
[1763337628842,0.18124904,3104.3,3102.7,0.33319591]
[1763337629144,0.96985528,3104.5,3102.9,2.8477591]
[1763337629302,0.4895,3104.2,3102.8,0.6676]
[1763337629717,0.4895,3104.2,3102.9,0.4832]
[1763337630656,0.4895,3104.2,3104.0,0.001]
[1763337630657,0.92777982,3104.2,3104.0,0.001]
[1763337631129,0.9477,3104.1,3104.0,0.001]
[1763337631456,1.1216115,3104.1,3104.0,0.001]
[1763337633209,1.5271155,3104.1,3104.0,0.001]
[1763337633607,1.88025064,3104.1,3104.0,0.001]
[1763337634561,0.405504,3104.0,3103.7,0.001]
[1763337634742,0.4895,3104.4,3103.7,0.001]
[1763337635038,0.4895,3104.1,3103.7,0.001]
[1763337635231,0.18976351,3104.3,3103.7,0.001]
[1763337635641,0.96985528,3104.5,3104.2,0.6563]
[1763337635822,0.96985528,3104.5,3104.4,0.4719]
[1763337636022,0.96985528,3104.5,3103.9,0.1844]
[1763337637125,0.96985528,3104.5,3103.7,0.001]
[1763337637333,0.4895,3104.4,3103.7,0.001]
[1763337637647,0.4582,3103.8,3103.7,0.001]
[1763337637811,0.9477,3103.8,3103.7,0.001]
[1763337638217,1.353204,3103.8,3103.7,0.001]
[1763337639126,0.43827982,3104.1,3103.7,0.4729]
[1763337639461,0.4895,3104.0,3103.7,0.001]
[1763337639827,0.405504,3104.4,3103.7,0.001]
[1763337640161,0.18648593,3104.3,3103.7,0.001]
[1763337640539,0.67598593,3104.3,3103.7,0.001]
[1763337641327,0.4895,3104.2,3103.7,0.001]
[1763337641727,0.4582,3103.8,3103.7,0.001]
[1763337642025,2.163704,3103.8,3103.7,0.001]
[1763337642358,2.8695744,3103.8,3103.7,0.001]
[1763337644049,1.5163704,3103.8,3103.7,0.001]
[1763337644259,0.96985528,3104.5,3103.7,0.4729]
[1763337644566,0.96985528,3104.5,3103.7,0.9561]
[1763337644859,0.96985528,3104.5,3103.7,0.4729]
[1763337645162,0.4895,3104.4,3103.7,0.001]
[1763337645558,0.96985528,3104.5,3103.7,0.001]
[1763337646141,0.4895,3104.4,3103.7,0.001]
[1763337646339,0.65514553,3104.4,3103.7,0.001]
[1763337648169,0.4582,3103.8,3103.7,0.001]
[1763337648576,0.895004,3104.3,3103.7,0.001]
[1763337648774,0.895004,3103.8,3103.7,0.001]
[1763337649172,1.353204,3103.8,3103.7,0.001]
[1763337649376,0.895004,3103.8,3103.7,0.001]
[1763337649593,1.842704,3103.8,3103.7,0.001]
[1763337649778,2.0269744,3103.8,3103.7,0.001]
[1763337650144,1.5374744,3103.8,3103.7,0.001]
[1763337650876,1.52998547,3103.8,3103.7,0.001]
[1763337651074,0.6424704,3103.8,3103.7,0.001]
[1763337652171,1.1276704,3103.8,3103.7,0.001]
[1763337652355,0.6424704,3103.8,3103.7,0.001]
[1763337652555,0.4582,3103.8,3103.7,0.001]
[1763337652776,0.61456129,3104.2,3103.7,0.4764]
[1763337652777,0.12936129,3104.2,3103.7,0.4764]
[1763337653079,0.405504,3104.3,3103.7,0.4764]
[1763337653384,0.4592,3103.8,3103.7,0.001]
[1763337653757,0.4812,3104.3,3103.7,0.4764]
[1763337653961,0.864704,3103.8,3103.7,0.001]
[1763337654153,0.87398382,3103.7,3103.3,0.001]
[1763337654358,0.4549,3103.4,3103.3,0.001]
[1763337654597,0.12937928,3103.8,3103.3,0.001]
[1763337654861,0.405504,3104.1,3103.7,0.4754]
[1763337655190,0.405504,3104.1,3103.8,2.28480385]
[1763337655490,0.890704,3104.1,3103.8,2.28480385]
[1763337655688,0.4592,3103.9,3103.8,2.28480385]
[1763337656887,0.9444,3103.9,3103.6,2.28480385]
[1763337657296,0.9444,3103.9,3103.7,2.28480385]
[1763337657466,0.4592,3103.9,3103.7,2.28480385]
[1763337658592,0.0302,3103.8,3103.7,2.28480385]
[1763337658798,0.405504,3104.1,3103.7,2.28480385]
[1763337658976,0.4852,3104.0,3103.7,2.28480385]
[1763337659178,0.890704,3104.1,3103.7,2.28480385]
[1763337660297,0.890704,3104.1,3103.8,2.28480385]
[1763337660661,0.12936715,3104.2,3103.8,2.28480385]
[1763337660882,0.002,3104.5,3104.1,0.6586]
[1763337661212,0.002,3104.5,3104.3,2.2851796]
[1763337661415,0.405504,3103.9,3103.5,2.2851796]
[1763337661588,0.0285,3103.6,3103.5,2.2851796]
[1763337661794,0.405504,3103.5,3103.3,0.001]
[1763337661991,0.860404,3103.4,3103.3,0.001]
[1763337662319,1.0434844,3103.4,3103.3,0.001]
[1763337662521,1.5286844,3103.4,3103.3,0.001]
[1763337662904,0.1830804,3103.4,3103.3,0.001]
[1763337663116,0.405504,3103.9,3103.3,0.9566]
[1763337663317,0.4852,3103.8,3103.5,2.29236834]
[1763337663624,0.35197447,3104.4,3103.5,2.29236834]
[1763337663787,0.002,3104.5,3104.0,2.29236834]
[1763337664118,0.4852,3104.4,3104.1,2.29236834]
[1763337664328,0.002,3104.5,3103.9,0.4802]
[1763337664527,0.002,3104.5,3104.4,2.29094546]
[1763337664829,0.002,3104.5,3104.3,2.29094546]
[1763337665042,0.002,3104.5,3104.4,2.29094546]
[1763337666322,0.002,3104.5,3104.1,0.6634]
[1763337666491,0.002,3104.5,3104.1,3.5111591]
[1763337666696,0.002,3104.5,3104.1,0.6634]
[1763337666896,0.002,3104.5,3104.4,2.28783659]
[1763337667151,0.002,3104.5,3104.1,0.6634]
[1763337667340,0.002,3104.5,3104.4,0.4754]
[1763337667625,0.002,3104.5,3104.4,3.3231591]
[1763337667793,0.002,3104.5,3104.4,3.8033591]
[1763337668188,0.002,3104.5,3104.4,0.9556]
[1763337668835,0.002,3104.5,3104.4,3.8033591]
[1763337669047,0.00036842,3104.5,3104.4,1.28395779]
[1763337669358,0.002,3104.7,3104.4,0.9556]
[1763337669493,0.002,3104.7,3104.6,0.4754]
[1763337669927,0.002,3104.7,3104.6,0.9556]
[1763337670306,0.002,3104.7,3104.6,4.94288882]
[1763337671448,0.002,3104.7,3104.6,0.9556]
[1763337671654,0.002,3104.7,3104.6,3.80054691]
[1763337672099,0.002,3104.7,3104.6,0.9556]
[1763337672293,0.002,3104.7,3104.5,2.84494691]
[1763337672819,0.002,3104.7,3104.4,2.84494691]
[1763337673434,0.002,3104.7,3104.2,2.84494691]
[1763337673639,0.002,3104.7,3104.5,2.27476086]
[1763337674419,0.002,3104.7,3104.6,0.9556]
[1763337675705,0.002,3104.7,3104.6,0.4754]
[1763337675958,0.002,3104.7,3104.6,0.9556]
[1763337676258,0.002,3104.7,3104.6,3.79899878]
[1763337678763,0.002,3104.7,3104.6,0.9556]
[1763337678965,0.002,3106.7,3105.3,0.4685]
[1763337679128,0.002,3106.7,3106.1,0.6583]
[1763337679576,0.002,3106.7,3106.1,1.1285]
[1763337680361,0.002,3106.7,3106.1,0.6583]
[1763337680558,0.002,3106.7,3106.1,1.1285]
[1763337682032,0.002,3106.7,3106.1,3.96760523]
[1763337682234,0.002,3107.0,3106.6,0.4532]
[1763337682437,0.002,3107.0,3106.9,0.4532]
[1763337682674,0.002,3107.0,3106.9,0.9403]
[1763337683176,0.002,3107.0,3106.9,3.19400428]
[1763337683780,0.9455,3107.0,3106.6,2.25370428]
[1763337683959,0.405504,3106.5,3105.4,2.25370428]
[1763337684160,0.405504,3106.5,3105.4,0.4871]
[1763337684383,0.405504,3106.6,3105.5,0.4871]
[1763337684595,0.1858,3106.9,3105.5,0.76118043]
[1763337684803,0.1858,3106.9,3105.6,2.25370428]
[1763337684973,0.1858,3106.9,3106.0,0.001]
[1763337685167,0.13126765,3107.0,3106.0,0.001]
[1763337685490,0.002,3107.0,3106.1,0.5729]
[1763337685694,0.65,3106.9,3106.0,0.001]
[1763337685897,0.405504,3106.8,3106.0,0.001]
[1763337686186,0.869704,3106.8,3106.0,0.001]
[1763337686591,0.4642,3106.7,3106.0,0.001]
[1763337687858,0.1858,3106.9,3106.0,0.001]
[1763337688056,0.65,3106.9,3106.0,0.001]
[1763337688456,0.869704,3106.8,3106.0,0.001]
[1763337689258,0.4642,3106.8,3106.0,0.001]
[1763337689487,0.002,3107.0,3106.0,0.4881]
[1763337690006,0.1858,3106.9,3106.0,0.4881]
[1763337690164,0.1858,3106.9,3106.0,0.001]
[1763337690359,0.4642,3106.8,3106.0,0.001]
[1763337691575,0.4642,3106.7,3106.0,0.001]
[1763337692788,0.4929,3106.1,3106.0,0.001]
[1763337693376,0.4642,3106.7,3106.0,0.001]
[1763337693699,9.28539896,3113.1,3106.0,0.001]
[1763337693700,0.4662,3107.3,3106.1,0.0858]
[1763337693998,0.002,3107.3,3106.9,0.4532]
[1763337694894,0.002,3107.3,3106.5,0.4871]
[1763337695109,0.1858,3106.9,3106.2,2.25370428]
[1763337695602,0.002,3107.0,3106.8,0.4532]
[1763337695810,0.002,3107.0,3106.9,0.4532]
[1763337695970,0.002,3107.0,3106.5,2.25370428]
[1763337696673,0.002,3107.0,3106.6,0.4871]
[1763337697179,0.002,3107.0,3106.9,0.4532]
[1763337697587,0.002,3107.0,3106.9,1.21099043]
[1763337697806,0.002,3107.0,3106.9,0.9403]
[1763337698280,0.002,3107.0,3106.9,0.4532]
[1763337699316,0.002,3107.0,3106.9,0.9403]
[1763337702813,0.002,3107.0,3106.9,0.4532]
[1763337703018,0.4949,3107.0,3106.9,2.26909616]
[1763337703216,0.9591,3107.0,3106.6,2.26909616]
[1763337703423,0.9591,3107.0,3106.1,0.001]
[1763337703424,0.1858,3106.7,3104.3,2.81580747]
[1763337703732,0.1858,3106.7,3103.1,0.1912]
[1763337703733,0.405504,3106.0,3103.5,0.4871]
[1763337703895,0.405504,3106.2,3103.1,0.1912]
[1763337704097,0.405504,3105.8,3102.8,0.1912]
[1763337704322,0.405504,3105.0,3102.3,0.1912]
[1763337704503,0.405504,3104.8,3102.6,0.4871]
[1763337704821,1.5392448,3104.8,3102.6,0.4871]
[1763337705208,0.405504,3104.6,3102.6,0.4871]
[1763337705799,0.405504,3104.6,3103.1,0.1912]
[1763337706425,0.405504,3104.6,3103.4,0.4871]
[1763337706586,0.405504,3104.6,3103.6,0.4881]
[1763337706925,0.405504,3104.6,3103.6,0.001]
[1763337707123,0.405504,3104.6,3103.6,0.4881]
[1763337709044,0.002,3107.0,3104.5,0.1912]
[1763337709191,0.47677982,3106.5,3104.5,0.1912]
[1763337709532,0.4881,3105.2,3104.5,0.6783]
[1763337709832,0.4881,3106.4,3104.5,0.6783]
[1763337709998,0.4881,3106.4,3105.1,0.1912]
[1763337709999,0.405504,3106.3,3105.1,0.1912]
[1763337710525,0.4881,3106.4,3105.1,0.6783]
[1763337710993,0.405504,3106.3,3105.1,0.6783]
[1763337711190,0.88228382,3106.3,3105.1,0.1912]
[1763337712139,0.88228382,3106.3,3104.7,0.4871]
[1763337712607,0.405504,3106.6,3104.7,0.4871]
[1763337713220,0.88228382,3106.6,3104.7,0.4871]
[1763337714622,0.405504,3106.4,3104.7,0.4871]
[1763337714832,0.47677982,3106.6,3104.7,0.4871]
[1763337715003,0.1858,3106.7,3104.7,0.4871]
[1763337715209,0.405504,3106.6,3104.7,0.4871]
[1763337715404,0.1858,3106.7,3104.8,0.405504]
[1763337715590,0.1858,3106.7,3104.7,0.4871]
[1763337715790,0.405504,3106.6,3104.7,0.4871]
[1763337719568,0.405504,3106.4,3104.7,0.4871]
[1763337720569,1.5392448,3106.2,3104.7,0.4871]
[1763337721266,1.5392448,3106.2,3104.5,0.6585]
[1763337721770,0.47677982,3106.1,3104.5,0.1912]
[1763337721966,0.47677982,3106.1,3104.3,0.001]
[1763337721967,0.405504,3106.0,3104.3,0.001]
[1763337722174,2.05504906,3105.8,3104.3,0.001]
[1763337722371,0.405504,3105.6,3104.3,0.001]
[1763337722668,1.5392448,3105.4,3104.3,0.001]
[1763337722882,0.405504,3105.2,3104.3,0.001]
[1763337723267,0.47677982,3105.1,3104.3,0.001]
[1763337723577,0.405504,3105.2,3104.3,0.001]
[1763337723780,0.405504,3105.5,3104.3,0.001]
[1763337724086,0.405504,3105.3,3104.3,0.001]
[1763337725056,0.405504,3105.0,3104.3,0.001]
[1763337725282,0.405504,3105.1,3104.3,0.001]
[1763337725796,0.002,3106.6,3105.0,0.6834]
[1763337725951,0.4683,3106.1,3105.1,0.9647]
[1763337726156,0.18683392,3106.6,3105.1,0.9647]
[1763337726360,0.002,3106.6,3105.2,0.4673]
[1763337726878,0.002,3106.6,3105.0,0.186]
[1763337726879,0.47877982,3106.6,3105.0,0.186]
[1763337727093,0.47877982,3106.6,3105.1,0.4673]
[1763337727554,0.405504,3106.4,3105.0,0.186]
[1763337727895,0.405504,3106.2,3104.8,0.186]
[1763337728059,0.405504,3106.1,3104.8,0.186]
[1763337728995,0.002,3106.6,3104.9,0.4673]
[1763337729301,0.407504,3106.6,3104.9,0.4673]
[1763337729498,0.002,3106.6,3104.9,0.4673]
[1763337729666,0.407504,3106.6,3104.9,0.4673]
[1763337730897,1.69205988,3106.5,3104.8,0.186]
[1763337731196,0.405504,3106.3,3104.3,0.001]
[1763337731358,0.405504,3105.9,3104.3,0.001]
[1763337731560,1.5392448,3105.7,3104.3,0.001]
[1763337731777,1.5392448,3105.5,3104.3,0.001]
[1763337731993,0.47677982,3105.4,3104.3,0.001]
[1763337732158,0.405504,3104.9,3104.3,0.001]
[1763337732353,0.405504,3104.7,3104.3,0.001]
[1763337732555,0.88228382,3104.7,3104.3,0.001]
[1763337732972,0.405504,3104.8,3104.3,0.001]
[1763337733169,0.20974718,3104.7,3104.3,0.001]
[1763337733368,1.689266,3105.2,3104.3,0.001]
[1763337733369,0.405504,3105.2,3104.3,0.001]
[1763337733681,0.1293684,3105.3,3104.3,0.4683]
[1763337733855,3.09429451,3105.9,3104.3,0.4683]
[1763337734061,0.405504,3105.7,3104.3,0.001]
[1763337734494,0.405504,3105.5,3104.3,0.001]
[1763337734695,0.405504,3105.7,3104.3,0.001]
[1763337735260,1.5392448,3105.7,3104.3,0.001]
[1763337735494,0.405504,3105.7,3104.3,0.001]
[1763337737759,0.407504,3105.7,3104.3,0.001]
[1763337738801,0.874804,3105.7,3104.3,0.001]
[1763337740215,1.35158382,3105.7,3104.3,0.001]
[1763337740823,6.402,3105.7,3104.4,0.4866]
[1763337741029,0.002,3105.7,3104.4,0.4866]
[1763337741322,0.002,3105.7,3105.6,0.6628]
[1763337741489,0.002,3105.7,3105.6,0.1829]
[1763337741690,0.002,3105.7,3105.6,1.1236]
[1763337742646,0.002,3106.1,3105.6,1.1236]
[1763337742820,0.002,3106.1,3106.0,0.4637]
[1763337743226,0.002,3106.1,3106.0,0.9407]
[1763337743630,0.002,3106.1,3105.6,0.1829]
[1763337744359,0.002,3106.1,3106.0,0.4637]
[1763337744711,0.002,3106.1,3106.0,0.9407]
[1763337745039,0.002,3106.1,3105.2,2.86198066]
[1763337745226,0.002,3106.1,3104.7,0.1912]
[1763337745227,0.409504,3106.1,3104.7,0.1912]
[1763337745428,0.002,3106.1,3104.7,0.54421807]
[1763337745630,0.002,3106.1,3104.8,0.477]
[1763337748917,0.002,3106.1,3104.8,3.33898066]
[1763337749312,0.002,3106.1,3104.9,0.477]
[1763337754038,0.409504,3106.1,3104.9,0.477]
[1763337754864,0.002,3106.1,3104.9,0.477]
[1763337755445,0.002,3106.1,3104.9,3.33898066]
[1763337755675,0.002,3106.1,3105.0,0.33389807]
[1763337755862,0.002,3106.1,3105.0,0.81089807]
[1763337756071,0.002,3106.1,3105.1,0.477]
[1763337757749,0.002,3106.1,3106.0,0.4637]
[1763337758858,0.002,3106.1,3106.0,0.9407]
[1763337759268,0.002,3106.4,3106.0,0.9407]
[1763337759450,0.002,3106.4,3106.3,0.6549]
[1763337759783,0.002,3106.5,3106.3,0.6549]
[1763337759955,0.002,3106.5,3106.4,0.9407]
[1763337760952,0.002,3106.8,3106.3,0.1912]
[1763337760953,0.002,3106.8,3106.5,0.9407]
[1763337761180,0.002,3106.8,3106.7,0.4637]
[1763337761549,0.002,3106.8,3106.3,0.1912]
[1763337761746,0.002,3106.8,3106.4,0.477]
[1763337762262,0.002,3106.8,3106.7,0.4637]
[1763337762459,0.002,3106.8,3106.0,2.86198066]
[1763337762648,0.002,3106.8,3105.9,0.1912]
[1763337763071,0.012,3106.8,3105.7,0.1912]
[1763337763470,0.002,3106.8,3105.8,0.477]
[1763337763859,0.002,3106.8,3105.8,0.83001807]
[1763337764363,0.002,3106.8,3105.9,0.477]
[1763337767465,0.002,3106.8,3106.7,0.4637]
[1763337767693,0.002,3106.8,3106.0,2.86198066]
[1763337768207,0.002,3106.8,3106.1,0.477]
[1763337768424,0.002,3106.8,3106.2,0.33389807]
[1763337768691,0.002,3106.8,3106.1,0.477]
[1763337769385,0.002,3106.8,3106.1,3.33898066]
[1763337769697,0.002,3106.8,3106.7,0.4637]
[1763337770106,0.002,3106.8,3106.7,0.9407]
[1763337770701,0.002,3106.8,3106.5,2.86198066]
[1763337770940,0.002,3106.8,3106.6,0.477]
[1763337771218,0.002,3106.8,3106.0,3.96550826]
[1763337771219,0.002,3106.8,3106.4,2.86198066]
[1763337771421,0.002,3106.8,3106.5,0.4793]
[1763337772495,0.002,3106.8,3106.2,2.86198066]
[1763337772496,0.002,3106.8,3106.0,2.86198066]
[1763337772710,0.002,3106.8,3106.0,3.59265955]
[1763337772906,0.002,3106.8,3106.1,3.34128066]
[1763337773086,0.002,3106.8,3106.0,2.86198066]
[1763337773276,0.002,3106.8,3105.9,2.86198066]
[1763337774584,0.002,3106.8,3106.0,2.86198066]
[1763337775181,0.002,3106.8,3105.9,3.34128066]
[1763337775480,0.002,3106.8,3106.0,2.86198066]
[1763337775682,0.002,3106.8,3106.0,3.34128066]
[1763337778319,0.01,3106.1,3105.9,2.86198066]
[1763337778516,0.01,3106.1,3105.5,0.1859]
[1763337778517,0.01,3106.1,3105.8,2.86198066]
[1763337778717,0.01,3106.1,3105.5,3.04788066]
[1763337779119,0.01,3106.1,3105.5,2.86198066]
[1763337779318,0.01,3106.1,3105.4,2.86198066]
[1763337779522,0.02,3106.1,3105.4,2.86198066]
[1763337779684,0.02,3106.1,3105.2,2.86198066]
[1763337780425,2.02303165,3106.6,3105.3,0.4793]
[1763337780426,0.405504,3106.6,3105.3,0.4793]
[1763337780581,0.405504,3106.6,3105.3,3.34128066]
[1763337780781,0.425504,3106.7,3105.6,2.86198066]
[1763337781021,0.415504,3106.6,3105.5,2.86198066]
[1763337781517,0.405504,3106.6,3105.6,3.34128066]
[1763337781693,0.405504,3106.6,3105.5,2.86198066]
[1763337781895,0.415504,3106.6,3105.5,2.86198066]
[1763337782318,0.405504,3106.6,3105.5,2.86198066]
[1763337782617,0.01,3106.5,3105.4,2.86198066]
[1763337783408,0.405504,3106.6,3105.5,3.34128066]
[1763337783593,0.01,3106.5,3105.5,2.86198066]
[1763337783799,0.01,3106.5,3105.4,2.86198066]
[1763337784386,0.405504,3106.6,3105.5,2.86198066]
[1763337784586,0.405504,3106.6,3105.5,3.34128066]
[1763337784824,0.415504,3106.7,3105.6,2.86198066]
[1763337785002,0.012,3106.8,3105.6,2.86198066]
[1763337785003,0.002,3106.8,3106.0,2.86198066]
[1763337785202,0.002,3106.8,3106.1,2.86198066]
[1763337785695,0.002,3106.8,3106.2,3.34128066]
[1763337786194,0.002,3106.8,3106.1,3.19610873]
[1763337786391,0.002,3106.8,3106.1,2.86198066]
[1763337786730,0.002,3106.8,3106.2,0.4793]
[1763337786932,0.002,3106.8,3106.2,3.34128066]
[1763337787140,0.002,3106.8,3106.7,0.4545]
[1763337787622,0.002,3106.8,3106.7,0.9338]
[1763337787925,0.002,3106.8,3106.7,1.31337807]
[1763337790221,0.002,3106.8,3106.7,4.17535873]
[1763337790418,0.002,3106.8,3106.7,1.31337807]
[1763337790621,0.002,3106.8,3106.7,0.9338]
[1763337793182,0.002,3107.0,3106.7,0.9338]
[1763337793341,0.002,3107.0,3106.9,0.4545]
[1763337793843,0.002,3107.0,3106.9,0.9338]
[1763337795462,0.002,3107.0,3106.9,1.339304]
[1763337797377,0.002,3107.0,3106.9,4.90468992]
[1763337797661,0.002,3107.0,3106.9,5.39515891]
[1763337797854,0.002,3107.0,3106.9,1.42426899]
[1763337798760,0.002,3107.0,3106.9,0.9338]
[1763337799556,0.002,3107.0,3106.9,2.83367278]
[1763337799757,0.002,3107.0,3106.5,2.83367278]
[1763337800465,0.002,3107.0,3106.6,0.4984]
[1763337800766,0.002,3107.0,3106.9,0.471]
[1763337800967,0.002,3107.0,3106.6,0.4984]
[1763337801167,0.002,3107.0,3106.6,0.83160728]
[1763337801668,0.002,3107.0,3106.5,2.83367278]
[1763337801964,0.002,3107.0,3106.1,7.2924627]
[1763337802154,0.002,3107.0,3106.2,2.83367278]
[1763337802559,0.002,3107.0,3106.1,3.32157278]
[1763337802947,0.002,3107.0,3106.1,2.83367278]
[1763337803156,0.002,3107.0,3106.2,0.4879]
[1763337804172,0.002,3107.0,3106.2,3.32157278]
[1763337804573,0.002,3107.0,3106.3,0.4879]
[1763337806887,0.002,3107.0,3106.9,0.4996]
[1763337807057,0.002,3107.0,3106.9,0.9875]
[1763337807251,0.002,3107.0,3106.9,1.36961728]
[1763337807466,0.002,3107.0,3106.9,4.20329006]
[1763337807864,0.002,3107.0,3106.9,0.88171728]
[1763337808086,0.002,3107.0,3106.9,0.4996]
[1763337808474,0.002,3107.0,3106.9,0.9875]
[1763337812730,0.002,3107.0,3106.9,4.95838992]
[1763337813599,0.002,3107.0,3106.9,4.47048992]
[1763337813931,0.002,3107.0,3106.9,0.9875]
[1763337814111,0.002,3107.0,3106.9,1.48333899]
[1763337817345,0.002,3107.0,3106.7,3.97088992]
[1763337817655,0.002,3107.0,3106.9,2.83928672]
[1763337818018,0.012,3107.0,3106.8,2.83928672]
[1763337818223,0.002,3107.0,3106.8,2.83928672]
[1763337819832,0.01,3106.9,3106.8,2.83928672]
[1763337820033,0.002,3107.0,3106.7,2.83928672]
[1763337820365,0.002,3107.0,3106.6,2.83928672]
[1763337822360,0.01,3106.7,3106.6,2.83928672]
[1763337822528,0.01,3106.7,3106.4,2.83928672]
[1763337822931,0.002,3107.0,3106.4,2.83928672]
[1763337824764,0.002,3107.0,3106.4,2.84028672]
[1763337825862,0.002,3107.0,3106.5,3.32718672]
[1763337826265,0.002,3107.0,3106.6,0.4879]
[1763337826438,0.002,3107.0,3106.5,2.83928672]
[1763337826650,0.002,3107.0,3106.5,3.32718672]
[1763337826963,0.002,3107.0,3106.5,2.83928672]
[1763337827729,0.002,3107.0,3106.6,0.4879]
[1763337827962,0.002,3107.0,3106.9,0.4996]
[1763337828172,0.002,3107.0,3106.9,2.83928672]
[1763337828476,0.012,3107.0,3106.7,2.83928672]
[1763337828629,0.01,3106.8,3106.4,0.001]
[1763337828988,0.01,3106.5,3106.4,0.001]
[1763337829129,0.01,3106.5,3106.1,0.001]
[1763337829330,0.007,3106.1,3105.8,0.001]
[1763337829527,0.007,3106.5,3105.8,0.001]
[1763337829732,0.007,3105.9,3105.8,0.001]
[1763337830170,0.014,3105.9,3105.8,0.001]
[1763337830336,0.53478585,3106.7,3105.8,0.001]
[1763337830337,0.007,3106.3,3105.8,0.001]
[1763337831347,0.405504,3106.6,3105.8,0.001]
[1763337831547,0.007,3105.9,3105.8,0.001]
[1763337832835,0.014,3105.9,3105.8,0.001]
[1763337833037,0.419504,3105.9,3105.8,0.001]
[1763337834548,7.9532448,3105.9,3105.8,0.001]
[1763337836237,7.5407408,3105.9,3105.8,0.001]
[1763337836444,6.407,3105.9,3105.8,0.001]
[1763337836738,7.5407408,3105.9,3105.8,0.001]
[1763337836941,1.5392448,3105.8,3105.5,0.001]
[1763337837166,0.405504,3105.7,3105.5,0.001]
[1763337837474,0.005,3105.6,3105.2,0.001]
[1763337837675,0.405504,3105.2,3104.3,0.001]
[1763337837973,0.002,3104.6,3104.3,0.001]
[1763337838341,0.004,3104.6,3104.3,0.001]
[1763337838548,0.53885316,3104.6,3104.3,0.001]
[1763337840870,0.53685316,3104.6,3104.3,0.001]
[1763337841068,0.31911139,3105.5,3104.5,0.4629]
[1763337841245,3.07152765,3106.6,3104.5,0.4629]
[1763337841246,2.0657858,3106.5,3104.5,0.4629]
[1763337841460,0.12931654,3105.3,3104.5,0.4629]
[1763337841698,0.67308997,3106.4,3104.5,0.4629]
[1763337841905,0.67308997,3106.4,3104.5,0.001]
[1763337841906,0.002,3104.6,3104.5,0.001]
[1763337842099,0.405504,3106.2,3104.5,0.001]
[1763337842100,0.31911139,3105.8,3104.5,0.001]
[1763337842300,0.002,3104.6,3104.5,0.001]
[1763337842787,0.53887157,3104.6,3104.5,0.001]
[1763337842988,0.69941181,3104.6,3104.5,0.001]
[1763337843598,0.53887157,3104.6,3104.5,0.001]
[1763337844105,0.405504,3104.5,3104.3,0.001]
[1763337844312,0.57122529,3104.4,3104.3,0.001]
[1763337844464,1.2660626,3104.4,3104.3,0.001]
[1763337844664,1.2620626,3104.4,3104.3,0.001]
[1763337844866,1.2660626,3104.4,3104.3,0.001]